[Event "Argentine Youth-Junior-ch 2025"]
[Site "Mar del Plata"]
[Date "2025.04.18"]
[Round "6.1"]
[White "Abramor, Franco"]
[Black "Scarsi, Anna Laura"]
[Result "0-1"]
[Annotator "ChessBase"]
[ECO "B48"]
[WhiteElo "2169"]
[BlackElo "2144"]
[PlyCount "62"]
[EventDate "2025.04.14"]
[EventType "swiss"]
[EventCountry "ARG"]
[SourceTitle "playchess.com"]
[Source "ChessBase"]
[SourceQuality "1"]
[TimeControl "3600+30"]

1. e4 {[%emt 0:00:02]} c5 {[%emt 0:00:04]} 2. Nf3 {[%emt 0:00:05]} e6 {[%emt 0:00:04]} 3. d4 {[%emt 0:00:06]} cxd4 {[%emt 0:00:04]} 4. Nxd4 {[%emt 0:00:04]} Nc6 {[%emt 0:00:05]} 5. Nc3 {[%emt 0:00:24]} Qc7 {[%emt 0:00:05]} 6. Be3 {[%emt 0:00:08]} a6 {[%emt 0:00:10]} 7. Qf3 {[%emt 0:00:09]} Ne5 {[%emt 0:00:09]} 8. Qg3 {[%emt 0:00:07]} h5 {[%emt 0:00:12]} 9. h4 {[%emt 0:16:16]} Nf6 {[%emt 0:09:16]} 10. O-O-O {[%emt 0:01:40]} b5 {[%emt 0:02:15]} 11. Bf4 {[%emt 0:15:04]} d6 {[%emt 0:00:53]} 12. f3 {[%emt 0:00:02]} Bb7 {[%emt 0:10:04]} 13. Kb1 {[%emt 0:00:22]} Rc8 {[%emt 0:01:12]} 14. Be3 {[%emt 0:10:37]} b4 {[%emt 0:07:11]} 15. Na4 {[%emt 0:00:19]} Bc6 {[%emt 0:00:38]} 16. Bxa6 {[%emt 0:07:39]} Bxa4 {[%emt 0:01:14]} 17. Bxc8 {[%emt 0:00:05]} Qxc8 {[%emt 0:00:45]} 18. b3 {[%emt 0:00:17]} Bd7 {[%emt 0:00:05]} 19. Qe1 {[%emt 0:05:59]} Be7 {[%emt 0:07:28]} 20. Qxb4 {[%emt 0:00:18]} d5 {[%emt 0:02:26]} 21. Qa5 {[%emt 0:01:02]} Qb7 {[%emt 0:01:56]} 22. Qe1 {[%emt 0:02:39]} dxe4 {[%emt 0:00:44]} 23. Bg5 {[%emt 0:01:41]} O-O {[%emt 0:02:24]} 24. fxe4 {[%emt 0:01:06]} Rc8 {[%emt 0:03:17]} 25. Rf1 {[%emt 0:01:29]} Bb4 {[%emt 0:04:05]} 26. Qg3 {[%emt 0:01:25]} Nxe4 {[%emt 0:07:27]} 27. Qxe5 {[%emt 0:00:01]} Nc3+ {[%emt 0:00:06]} 28. Kb2 {[%emt 0:00:24]} Qa8 {[%emt 0:00:39]} 29. a4 {[%emt 0:00:48]} Nxa4+ {[%emt 0:01:06]} 30. bxa4 {[%emt 0:01:03]} Bc3+ {[%emt 0:01:43]} 31. Kc1 {[%emt 0:01:16]} Qxa4 {[%emt 0:00:08]} 0-1

[Event "Argentine Youth-Junior-ch 2025"]
[Site "Mar del Plata"]
[Date "2025.04.18"]
[Round "6.2"]
[White "Unhold, Valentin"]
[Black "Medina, Augusto Benjamin"]
[Result "1-0"]
[Annotator "ChessBase"]
[ECO "A34"]
[WhiteElo "2149"]
[BlackElo "1815"]
[PlyCount "42"]
[EventDate "2025.04.14"]
[EventType "swiss"]
[EventCountry "ARG"]
[SourceTitle "playchess.com"]
[Source "ChessBase"]
[SourceQuality "1"]
[TimeControl "3600+30"]

1. c4 {[%emt 0:00:03]} c5 {[%emt 0:02:13]} 2. g3 {[%emt 0:00:09]} Nf6 {[%emt 0:00:31]} 3. Bg2 {[%emt 0:00:08]} d5 {[%emt 0:00:06]} 4. cxd5 {[%emt 0:00:09]} Nxd5 {[%emt 0:00:04]} 5. Nc3 {[%emt 0:00:10]} Nc7 {[%emt 0:00:27]} 6. Nf3 {[%emt 0:00:08]} Nc6 {[%emt 0:00:02]} 7. a3 {[%emt 0:00:12]} e5 {[%emt 0:13:47]} 8. b4 {[%emt 0:00:21]} a6 {[%emt 0:00:04]} 9. O-O {[%emt 0:02:56]} Be7 {[%emt 0:01:09]} 10. Bb2 {[%emt 0:08:10]} f6 {[%emt 0:11:50]} 11. bxc5 {[%emt 0:03:19]} Ne6 {[%emt 0:00:07]} 12. Na4 {[%emt 0:08:02]} Nxc5 {[%emt 0:17:52]} 13. Nxc5 {[%emt 0:09:26]} Bxc5 {[%emt 0:00:23]} 14. Rc1 {[%emt 0:00:27]} Qb6 {[%emt 0:04:16]} 15. Qc2 {[%emt 0:04:27]} Bd6 {[%emt 0:06:03]} 16. d4 {[%emt 0:06:39]} O-O {[%emt 0:01:24]} 17. dxe5 {[%emt 0:01:43]} fxe5 {[%emt 0:00:01]} 18. Ng5 {[%emt 0:03:16]} Bf5 {[%emt 0:01:18]} 19. Be4 {[%emt 0:00:08]} g6 {[%emt 0:00:27]} 20. Qd2 {[%emt 0:02:27]} Bxe4 {[%emt 0:01:43]} 21. Qxd6 {[%emt 0:04:37]} Qxb2 {[%emt 0:07:13]} 1-0

[Event "Argentine Youth-Junior-ch 2025"]
[Site "Mar del Plata"]
[Date "2025.04.18"]
[Round "6.3"]
[White "Gaite, Karen Nerina"]
[Black "Lucci, Ludmila Ayelen"]
[Result "1-0"]
[Annotator "NA"]
[ECO "A25"]
[WhiteElo "2031"]
[BlackElo "1585"]
[PlyCount "77"]
[EventDate "2025.04.14"]
[EventType "swiss"]
[EventCountry "ARG"]
[SourceTitle "playchess.com"]
[Source "ChessBase"]
[SourceQuality "1"]
[TimeControl "3600+30"]

1. c4 {[%emt 0:00:02]} e5 {[%emt 0:00:08]} 2. Nc3 {[%emt 0:00:14]} Nf6 {[%emt 0:00:08]} 3. g3 {[%emt 0:00:05]} Bb4 {[%emt 0:00:13]} 4. Bg2 {[%emt 0:00:12]} Nc6 {[%emt 0:00:13]} 5. Nd5 {[%emt 0:00:10]} Bc5 {[%emt 0:01:12]} 6. e3 {[%emt 0:00:54]} d6 {[%emt 0:00:44]} 7. Ne2 {[%emt 0:03:31]} Be6 {[%emt 0:04:49]} 8. d4 {[%emt 0:01:59]} Bb6 {[%emt 0:01:27]} 9. Nxb6 {[%emt 0:00:55]} axb6 {[%emt 0:00:46]} 10. d5 {[%emt 0:00:08]} Bxd5 {[%emt 0:01:04]} 11. cxd5 {[%emt 0:00:12]} Ne7 {[%emt 0:00:30]} 12. O-O {[%emt 0:00:30]} O-O {[%emt 0:04:13]} 13. e4 {[%emt 0:01:43]} h6 {[%emt 0:02:57]} 14. Nc3 {[%emt 0:01:31]} Nd7 {[%emt 0:02:26]} 15. Qg4 {[%emt 0:02:37]} f5 {[%emt 0:09:50]} 16. exf5 {[%emt 0:01:07]} Nxf5 {[%emt 0:01:52]} 17. Be4 {[%emt 0:01:06]} Qf6 {[%emt 0:04:41]} 18. Bxf5 {[%emt 0:03:07]} Qxf5 {[%emt 0:00:41]} 19. Qxf5 {[%emt 0:00:05]} Rxf5 {[%emt 0:00:12]} 20. Be3 {[%emt 0:00:07]} Raf8 {[%emt 0:04:06]} 21. Nb5 {[%emt 0:00:45]} Nf6 {[%emt 0:02:45]} 22. Nxc7 {[%emt 0:00:50]} Ng4 {[%emt 0:02:18]} 23. Bxb6 {[%emt 0:00:37]} Nf6 {[%emt 0:02:48]} 24. a4 {[%emt 0:01:01]} Ne4 {[%emt 0:02:14]} 25. Ne6 {[%emt 0:02:32]} R8f7 {[%emt 0:00:43]} 26. Rad1 {[%emt 0:00:39]} Ng5 {[%emt 0:01:20]} 27. Nxg5 {[%emt 0:00:17]} Rxg5 {[%emt 0:00:08]} 28. f3 {[%emt 0:00:47]} Rf8 {[%emt 0:01:24]} 29. b4 {[%emt 0:00:15]} h5 {[%emt 0:01:47]} 30. a5 {[%emt 0:01:12]} h4 {[%emt 0:00:58]} 31. g4 {[%emt 0:00:11]} e4 {[%emt 0:00:45]} 32. h3 {[%emt 0:47:09]} exf3 {[%emt 0:00:54]} 33. Rd3 {[%emt 0:00:00]} f2+ {[%emt 0:00:46]} 34. Rxf2 {[%emt 0:00:00]} Re8 {[%emt 0:00:22]} 35. Rf5 {[%emt 0:00:00]} Rxf5 {[%emt 0:01:59]} 36. gxf5 {[%emt 0:00:00]} Re4 {[%emt 0:00:24]} 37. Bc7 {[%emt 0:00:00]} Rxb4 {[%emt 0:00:31]} 38. Bxd6 {[%emt 0:00:00]} Rb5 {[%emt 0:00:34]} 39. Bc7 {[%emt 0:00:00]} 1-0

[Event "Argentine Youth-Junior-ch 2025"]
[Site "Mar del Plata"]
[Date "2025.04.18"]
[Round "6.4"]
[White "Deichmann, Esteban Horacio"]
[Black "Villordo, Matias"]
[Result "0-1"]
[Annotator "ChessBase"]
[ECO "B23"]
[WhiteElo "2028"]
[BlackElo "2055"]
[PlyCount "90"]
[EventDate "2025.04.14"]
[EventType "swiss"]
[EventCountry "ARG"]
[SourceTitle "playchess.com"]
[Source "ChessBase"]
[SourceQuality "1"]
[TimeControl "3600+30"]

1. e4 {[%emt 0:00:03]} c5 {[%emt 0:00:14]} 2. Nc3 {[%emt 0:00:30]} e6 {[%emt 0:00:33]} 3. g4 {[%emt 0:00:06]} d5 {[%emt 0:04:17]} 4. Bg2 {[%emt 0:00:20]} dxe4 {[%emt 0:05:42]} 5. Nxe4 {[%emt 0:01:36]} Be7 {[%emt 0:01:07]} 6. g5 {[%emt 0:01:47]} Bxg5 {[%emt 0:05:22]} 7. Nxc5 {[%emt 0:00:42]} Qb6 {[%emt 0:04:40]} 8. d4 {[%emt 0:01:42]} Be7 {[%emt 0:01:26]} 9. Nb3 {[%emt 0:04:11]} Nf6 {[%emt 0:02:07]} 10. Nf3 {[%emt 0:04:04]} Bd7 {[%emt 0:09:31]} 11. O-O {[%emt 0:02:50]} Bc6 {[%emt 0:00:43]} 12. Be3 {[%emt 0:00:41]} Qd8 {[%emt 0:04:25]} 13. Qe2 {[%emt 0:01:04]} O-O {[%emt 0:00:16]} 14. c4 {[%emt 0:00:53]} Nbd7 {[%emt 0:03:26]} 15. Nc1 {[%emt 0:01:54]} Qc7 {[%emt 0:02:52]} 16. b3 {[%emt 0:05:49]} Ng4 {[%emt 0:00:54]} 17. d5 {[%emt 0:03:34]} exd5 {[%emt 0:01:45]} 18. h3 {[%emt 0:02:28]} Nxe3 {[%emt 0:00:28]} 19. Qxe3 {[%emt 0:00:34]} Bf6 {[%emt 0:01:48]} 20. Nd3 {[%emt 0:02:17]} Rfe8 {[%emt 0:00:32]} 21. Qf4 {[%emt 0:01:27]} Qxf4 {[%emt 0:00:33]} 22. Nxf4 {[%emt 0:00:04]} dxc4 {[%emt 0:00:21]} 23. Rad1 {[%emt 0:00:24]} cxb3 {[%emt 0:04:03]} 24. axb3 {[%emt 0:00:08]} Ne5 {[%emt 0:01:38]} 25. Nd4 {[%emt 0:00:08]} Bxg2 {[%emt 0:01:40]} 26. Kxg2 {[%emt 0:00:07]} Ng6 {[%emt 0:01:49]} 27. Nh5 {[%emt 0:01:18]} Be5 {[%emt 0:01:03]} 28. f4 {[%emt 0:00:29]} Nh4+ {[%emt 0:02:10]} 29. Kg3 {[%emt 0:00:24]} Bxd4 {[%emt 0:00:23]} 30. Kxh4 {[%emt 0:00:02]} Rad8 {[%emt 0:00:52]} 31. Ng3 {[%emt 0:02:01]} Bf2 {[%emt 0:00:14]} 32. Rc1 {[%emt 0:02:25]} Bxg3+ {[%emt 0:00:14]} 33. Kxg3 {[%emt 0:00:04]} Re3+ {[%emt 0:00:22]} 34. Kg4 {[%emt 0:00:26]} h5+ {[%emt 0:01:19]} 35. Kh4 {[%emt 0:00:52]} Rxb3 {[%emt 0:00:20]} 36. Rc7 {[%emt 0:00:16]} Rdd3 {[%emt 0:01:10]} 37. Kxh5 {[%emt 0:01:58]} Rxh3+ {[%emt 0:00:42]} 38. Kg5 {[%emt 0:00:14]} Rhg3+ {[%emt 0:01:25]} 39. Kf5 {[%emt 0:00:31]} Rb5+ {[%emt 0:00:58]} 40. Ke4 {[%emt 0:00:04]} g6 {[%emt 0:01:06]} 41. Rd1 {[%emt 0:00:53]} Rgb3 {[%emt 0:00:34]} 42. Rd8+ {[%emt 0:00:29]} Kg7 {[%emt 0:00:11]} 43. Rcc8 {[%emt 0:00:19]} f5+ {[%emt 0:01:17]} 44. Kd4 {[%emt 0:00:09]} R5b4+ {[%emt 0:00:05]} 45. Kc5 {[%emt 0:01:02]} b6+ {[%emt 0:06:23]} 0-1

[Event "Argentine Youth-Junior-ch 2025"]
[Site "Mar del Plata"]
[Date "2025.04.18"]
[Round "6.5"]
[White "Martinez, Valentin Jesus"]
[Black "Bazan Romero, Octavio Aaron"]
[Result "0-1"]
[Annotator "RC"]
[ECO "E05"]
[WhiteElo "2037"]
[BlackElo "2292"]
[PlyCount "31"]
[EventDate "2025.04.14"]
[EventType "swiss"]
[EventCountry "ARG"]
[SourceTitle "playchess.com"]
[Source "ChessBase"]
[SourceQuality "1"]
[TimeControl "3600+30"]

1. d4 {[%emt 0:05:50]} d5 {[%emt 0:00:50]} 2. Nf3 {[%emt 0:01:10]} Nf6 {[%emt 0:00:04]} 3. g3 {[%emt 0:00:17]} e6 {[%emt 0:01:04]} 4. c4 {[%emt 0:00:52]} Be7 {[%emt 0:00:06]} 5. Bg2 {[%emt 0:01:10]} O-O {[%emt 0:00:22]} 6. O-O {[%emt 0:01:14]} dxc4 {[%emt 0:00:36]} 7. Ne5 {[%emt 0:05:59]} Nc6 {[%emt 0:00:15]} 8. Bxc6 {[%emt 0:02:47]} bxc6 {[%emt 0:00:02]} 9. Nxc6 {[%emt 0:00:01]} Qe8 {[%emt 0:00:14]} 10. Nxe7+ {[%emt 0:02:15]} Qxe7 {[%emt 0:00:24]} 11. Qc2 {[%emt 0:08:05]} e5 {[%emt 0:00:29]} 12. d5 {[%emt 0:11:01]} Nxd5 {[%emt 0:07:02]} 13. Na3 {[%emt 0:26:19]} c3 14. b3 {[%emt 0:00:00]} Bh3 {[%emt 0:15:28]} 15. Re1 {[%emt 0:00:00]} Rfd8 {[%emt 0:20:55]} 16. Nc4 {[%emt 0:00:00]} 0-1

[Event "Argentine Youth-Junior-ch 2025"]
[Site "Mar del Plata"]
[Date "2025.04.18"]
[Round "6.6"]
[White "Fournel, Bautista"]
[Black "Frutos, Leandro Jose"]
[Result "0-1"]
[Annotator "RC"]
[ECO "B33"]
[WhiteElo "1932"]
[BlackElo "2026"]
[PlyCount "88"]
[EventDate "2025.04.14"]
[EventType "swiss"]
[EventCountry "ARG"]
[SourceTitle "playchess.com"]
[Source "ChessBase"]
[SourceQuality "1"]
[TimeControl "3600+30"]

1. e4 {[%emt 0:00:04]} c5 {[%emt 0:14:40]} 2. Nf3 {[%emt 0:00:11]} Nc6 {[%emt 0:00:20]} 3. d4 {[%emt 0:00:08]} cxd4 {[%emt 0:00:04]} 4. Nxd4 {[%emt 0:00:10]} Nf6 {[%emt 0:00:02]} 5. Nc3 {[%emt 0:00:20]} e5 {[%emt 0:00:26]} 6. Ndb5 {[%emt 0:00:24]} d6 {[%emt 0:00:02]} 7. Bg5 {[%emt 0:00:22]} a6 {[%emt 0:01:39]} 8. Na3 {[%emt 0:00:20]} b5 {[%emt 0:01:03]} 9. Nd5 {[%emt 0:00:17]} Be7 {[%emt 0:00:02]} 10. Bxf6 {[%emt 0:01:21]} Bxf6 {[%emt 0:00:24]} 11. c4 {[%emt 0:00:12]} b4 {[%emt 0:00:15]} 12. Nc2 {[%emt 0:00:11]} Rb8 {[%emt 0:00:02]} 13. b3 {[%emt 0:01:42]} g6 {[%emt 0:00:08]} 14. g3 {[%emt 0:00:44]} Bg7 {[%emt 0:00:14]} 15. h4 {[%emt 0:00:30]} h5 {[%emt 0:03:34]} 16. Bh3 {[%emt 1:01:34]} Be6 {[%emt 0:45:35]} 17. Kf1 {[%emt 0:00:00]} O-O {[%emt 0:00:00]} 18. Kg2 {[%emt 0:00:00]} Qd7 {[%emt 0:00:00]} 19. Qe2 {[%emt 0:00:00]} f5 {[%emt 0:00:00]} 20. exf5 {[%emt 0:00:00]} Bxf5 {[%emt 0:00:00]} 21. Bxf5 {[%emt 0:00:00]} Rxf5 {[%emt 0:00:00]} 22. Nde3 {[%emt 0:00:00]} Rf7 {[%emt 0:00:00]} 23. Rad1 {[%emt 0:00:00]} Qb7 {[%emt 0:00:00]} 24. f3 {[%emt 0:00:00]} Re8 {[%emt 0:00:00]} 25. Nd5 {[%emt 0:00:00]} a5 {[%emt 0:01:36]} 26. Qe4 {[%emt 0:00:00]} Re6 {[%emt 0:02:38]} 27. Rhf1 {[%emt 0:00:00]} Qc8 {[%emt 0:00:27]} 28. Rde1 {[%emt 0:00:00]} Nd8 {[%emt 0:00:22]} 29. Re2 {[%emt 0:00:00]} Nb7 {[%emt 0:00:20]} 30. Nb6 {[%emt 0:00:00]} Qd8 {[%emt 0:00:26]} 31. Na4 {[%emt 0:00:00]} g5 {[%emt 0:01:06]} 32. Ne3 {[%emt 0:00:00]} gxh4 {[%emt 0:00:02]} 33. Qxh4 {[%emt 0:00:00]} Qxh4 {[%emt 0:00:39]} 34. gxh4 {[%emt 0:00:00]} Rf4 {[%emt 0:00:11]} 35. Rh1 {[%emt 0:00:00]} Rg6+ {[%emt 0:00:08]} 36. Kf2 {[%emt 0:00:31]} e4 {[%emt 0:00:02]} 37. Nd5 {[%emt 0:00:15]} Rxf3+ {[%emt 0:00:57]} 38. Ke1 {[%emt 0:00:09]} Rg4 {[%emt 0:01:07]} 39. Kd2 {[%emt 0:02:43]} Bh6+ {[%emt 0:00:55]} 40. Kc2 {[%emt 0:00:10]} e3 {[%emt 0:00:10]} 41. Nab6 {[%emt 0:01:18]} Nc5 {[%emt 0:00:22]} 42. Nc8 {[%emt 0:00:31]} Ne6 {[%emt 0:00:13]} 43. Nce7+ {[%emt 0:00:57]} Kh8 {[%emt 0:01:06]} 44. Nc6 {[%emt 0:00:58]} Rf2 {[%emt 0:00:39]} 0-1

[Event "Argentine Youth-Junior-ch 2025"]
[Site "Mar del Plata"]
[Date "2025.04.18"]
[Round "6.7"]
[White "Hilt, Juan Ignacio"]
[Black "Serulnicoff, Pedro"]
[Result "1/2-1/2"]
[Annotator "RC"]
[ECO "A07"]
[WhiteElo "2035"]
[BlackElo "2004"]
[PlyCount "57"]
[EventDate "2025.04.14"]
[EventType "swiss"]
[EventCountry "ARG"]
[SourceTitle "playchess.com"]
[Source "ChessBase"]
[SourceQuality "1"]
[TimeControl "3600+30"]

1. Nf3 {[%emt 0:00:10]} Nf6 {[%emt 0:00:28]} 2. g3 {[%emt 0:00:09]} d5 {[%emt 0:00:08]} 3. Bg2 {[%emt 0:00:06]} e6 {[%emt 0:00:23]} 4. O-O {[%emt 0:00:31]} Bd6 {[%emt 0:00:15]} 5. d4 {[%emt 0:00:34]} h6 {[%emt 0:00:13]} 6. c4 {[%emt 0:03:01]} O-O {[%emt 0:00:14]} 7. Nbd2 {[%emt 0:01:57]} b6 {[%emt 0:00:35]} 8. b3 {[%emt 0:03:51]} Bb7 {[%emt 0:01:30]} 9. Bb2 {[%emt 0:02:24]} Nbd7 {[%emt 0:02:42]} 10. Qc2 {[%emt 0:11:20]} c5 {[%emt 0:09:41]} 11. e3 {[%emt 0:02:00]} Rc8 {[%emt 0:02:27]} 12. Rac1 {[%emt 0:04:05]} Qc7 {[%emt 0:12:42]} 13. Qb1 {[%emt 0:03:16]} Qb8 {[%emt 0:01:30]} 14. Qa1 {[%emt 0:03:41]} Be7 {[%emt 0:07:10]} 15. Ne5 {[%emt 0:03:01]} Nxe5 {[%emt 0:03:42]} 16. dxe5 {[%emt 0:00:26]} Nd7 {[%emt 0:02:36]} 17. cxd5 {[%emt 0:01:37]} exd5 {[%emt 0:03:07]} 18. Rfd1 {[%emt 0:03:06]} Bc6 {[%emt 0:04:26]} 19. Nf3 {[%emt 0:04:00]} g6 {[%emt 0:04:08]} 20. h4 {[%emt 0:10:09]} Qb7 {[%emt 0:02:33]} 21. Ne1 {[%emt 0:04:52]} h5 {[%emt 0:01:29]} 22. Nd3 {[%emt 0:01:01]} Rfd8 {[%emt 0:08:00]} 23. e6 {[%emt 0:04:09]} fxe6 {[%emt 0:00:27]} 24. Bh8 {[%emt 0:01:46]} Bf8 {[%emt 0:01:10]} 25. Nf4 {[%emt 0:00:34]} Nb8 {[%emt 0:00:47]} 26. Nxe6 {[%emt 0:00:40]} Rd6 {[%emt 0:01:07]} 27. Nf4 {[%emt 0:00:53]} Qf7 {[%emt 0:00:00]} 28. Be5 {[%emt 0:00:30]} Rdd8 {[%emt 0:00:02]} 29. Bh3 {[%emt 0:00:36]} 1/2-1/2

[Event "Argentine Youth-Junior-ch 2025"]
[Site "Mar del Plata"]
[Date "2025.04.18"]
[Round "6.8"]
[White "Duarte Fernandez, Agustin"]
[Black "Koncurat, Valentino"]
[Result "1-0"]
[Annotator "NA"]
[ECO "D02"]
[WhiteElo "2001"]
[BlackElo "1707"]
[PlyCount "59"]
[EventDate "2025.04.14"]
[EventType "swiss"]
[EventCountry "ARG"]
[SourceTitle "playchess.com"]
[Source "ChessBase"]
[SourceQuality "1"]
[TimeControl "3600+30"]

1. d4 d5 2. Bf4 Nf6 3. e3 e6 4. Nf3 {[%emt 0:01:39]} c5 {[%emt 0:02:24]} 5. c3 {[%emt 0:00:00]} Bd6 {[%emt 0:01:27]} 6. Bg3 {[%emt 0:00:00]} c4 {[%emt 0:00:38]} 7. Nbd2 {[%emt 0:00:00]} Qc7 {[%emt 0:01:22]} 8. Qc2 {[%emt 0:00:00]} Nc6 {[%emt 0:58:39]} 9. e4 Bxg3 {[%emt 0:00:00]} 10. hxg3 {[%emt 0:00:33]} h6 {[%emt 0:00:00]} 11. e5 {[%emt 0:00:05]} Nd7 {[%emt 0:00:00]} 12. g4 {[%emt 0:00:06]} Nf8 {[%emt 0:00:00]} 13. g5 {[%emt 0:00:24]} Ng6 {[%emt 0:00:00]} 14. b3 {[%emt 0:00:27]} b5 {[%emt 0:00:00]} 15. a4 {[%emt 1:04:46]} Qa5 {[%emt 0:00:00]} 16. b4 {[%emt 0:00:00]} Qb6 {[%emt 0:00:00]} 17. a5 {[%emt 0:00:00]} Qd8 {[%emt 0:00:00]} 18. gxh6 {[%emt 0:00:00]} Rxh6 {[%emt 0:00:00]} 19. Rxh6 {[%emt 0:00:00]} gxh6 {[%emt 0:00:00]} 20. O-O-O {[%emt 0:00:00]} Kd7 {[%emt 0:00:00]} 21. g3 {[%emt 0:00:00]} Qf8 {[%emt 0:00:00]} 22. Bg2 {[%emt 0:00:00]} Bb7 {[%emt 0:00:00]} 23. Rh1 {[%emt 0:00:00]} Qg7 {[%emt 0:00:00]} 24. Nf1 {[%emt 0:00:00]} Nce7 {[%emt 0:00:00]} 25. Ne3 {[%emt 0:00:00]} Rh8 {[%emt 0:00:00]} 26. Ng4 {[%emt 0:00:00]} Ng8 {[%emt 0:00:00]} 27. a6 {[%emt 0:00:00]} Bc8 {[%emt 0:00:00]} 28. Ne3 {[%emt 0:00:00]} f6 {[%emt 0:00:00]} 29. exf6 {[%emt 0:00:00]} Nxf6 {[%emt 0:00:00]} 30. Qxg6 {[%emt 0:00:00]} 1-0

[Event "Argentine Youth-Junior-ch 2025"]
[Site "Mar del Plata"]
[Date "2025.04.18"]
[Round "6.9"]
[White "Valverde, Valentina Emma"]
[Black "Alvarez, Mia Morena"]
[Result "0-1"]
[Annotator "NA"]
[ECO "B22"]
[WhiteElo "1453"]
[BlackElo "1819"]
[PlyCount "96"]
[EventDate "2025.04.14"]
[EventType "swiss"]
[EventCountry "ARG"]
[SourceTitle "playchess.com"]
[Source "ChessBase"]
[SourceQuality "1"]
[TimeControl "3600+30"]

1. e4 {[%emt 0:04:22]} c5 {[%emt 0:00:13]} 2. c3 {[%emt 0:00:12]} Nf6 {[%emt 0:00:35]} 3. e5 {[%emt 0:00:18]} Nd5 {[%emt 0:00:25]} 4. d4 {[%emt 0:00:22]} cxd4 {[%emt 0:02:24]} 5. Nf3 {[%emt 0:00:57]} Nc6 {[%emt 0:00:28]} 6. cxd4 {[%emt 0:00:43]} d6 {[%emt 0:00:28]} 7. Nc3 {[%emt 0:03:14]} Nxc3 {[%emt 0:01:56]} 8. bxc3 {[%emt 0:00:24]} dxe5 {[%emt 0:01:05]} 9. d5 {[%emt 0:03:43]} e4 {[%emt 0:05:09]} 10. Ng5 {[%emt 0:01:50]} Ne5 {[%emt 0:01:42]} 11. Nxe4 {[%emt 0:02:34]} Bf5 {[%emt 0:04:37]} 12. Ng3 {[%emt 0:05:32]} Bd7 {[%emt 0:03:13]} 13. Be2 {[%emt 0:02:16]} Qc8 {[%emt 0:08:20]} 14. Bb2 {[%emt 0:03:18]} Nc4 {[%emt 0:01:41]} 15. Qb3 {[%emt 0:05:48]} b5 {[%emt 0:03:21]} 16. Rd1 {[%emt 0:03:59]} g6 {[%emt 0:01:51]} 17. O-O {[%emt 0:04:27]} Bg7 {[%emt 0:01:11]} 18. Rfe1 {[%emt 0:01:10]} Nxb2 {[%emt 0:03:34]} 19. Qxb2 {[%emt 0:04:44]} Bxc3 {[%emt 0:00:26]} 20. Qb3 {[%emt 0:02:15]} Bxe1 {[%emt 0:00:13]} 21. Rxe1 {[%emt 0:00:30]} O-O {[%emt 0:00:30]} 22. Bxb5 {[%emt 0:00:49]} Rb8 {[%emt 0:00:45]} 23. Bxd7 {[%emt 0:01:03]} Qxd7 {[%emt 0:00:03]} 24. Qa3 {[%emt 0:01:30]} Rfe8 {[%emt 0:02:18]} 25. Qc5 {[%emt 0:01:26]} Rb5 {[%emt 0:02:24]} 26. Qc6 {[%emt 0:03:11]} Rxd5 {[%emt 0:00:39]} 27. Qxd7 {[%emt 0:00:55]} Rxd7 {[%emt 0:00:01]} 28. Ne4 {[%emt 0:00:32]} Red8 {[%emt 0:00:25]} 29. Kf1 {[%emt 0:01:57]} Rd1 {[%emt 0:00:11]} 30. Nc3 {[%emt 0:01:38]} Rxe1+ {[%emt 0:00:14]} 31. Kxe1 {[%emt 0:00:09]} Rd3 {[%emt 0:00:19]} 32. Nb5 {[%emt 0:00:43]} a6 {[%emt 0:00:18]} 33. Na7 {[%emt 0:00:28]} Rc3 {[%emt 0:00:12]} 34. a4 {[%emt 0:01:08]} Rc7 {[%emt 0:00:05]} 35. Nb5 {[%emt 0:00:45]} axb5 {[%emt 0:00:14]} 36. axb5 {[%emt 0:00:11]} Rb7 {[%emt 0:00:07]} 37. Ke2 {[%emt 0:00:13]} Rxb5 {[%emt 0:00:09]} 38. f4 {[%emt 0:00:11]} Rb3 {[%emt 0:00:07]} 39. Kf2 {[%emt 0:00:21]} Kg7 {[%emt 0:00:06]} 40. h4 {[%emt 0:00:44]} h5 {[%emt 0:00:12]} 41. g3 {[%emt 0:00:18]} Kf6 {[%emt 0:00:19]} 42. Kg2 {[%emt 0:00:32]} Kf5 {[%emt 0:00:15]} 43. Kh3 {[%emt 0:01:18]} f6 {[%emt 0:00:07]} 44. Kh2 {[%emt 0:00:18]} Kg4 {[%emt 0:00:05]} 45. f5 {[%emt 0:00:55]} Rb2+ {[%emt 0:00:09]} 46. Kg1 {[%emt 0:00:28]} gxf5 {[%emt 0:00:09]} 47. Kf1 {[%emt 0:00:35]} Kf3 {[%emt 0:00:04]} 48. Kg1 {[%emt 0:00:54]} Ra2 {[%emt 0:31:11]} 0-1

[Event "Argentine Youth-Junior-ch 2025"]
[Site "Mar del Plata"]
[Date "2025.04.18"]
[Round "6.10"]
[White "Uzcudun, Alfonso"]
[Black "Rodriguez, Elian Francisco"]
[Result "1/2-1/2"]
[Annotator "NA"]
[ECO "B19"]
[WhiteElo "1799"]
[BlackElo "2043"]
[PlyCount "83"]
[EventDate "2025.04.14"]
[EventType "swiss"]
[EventCountry "ARG"]
[SourceTitle "playchess.com"]
[Source "ChessBase"]
[SourceQuality "1"]
[TimeControl "3600+30"]

1. e4 {[%emt 0:00:02]} c6 {[%emt 0:00:13]} 2. d4 {[%emt 0:00:27]} d5 {[%emt 0:00:08]} 3. Nd2 {[%emt 0:00:14]} dxe4 {[%emt 0:00:10]} 4. Nxe4 {[%emt 0:00:07]} Bf5 {[%emt 0:00:15]} 5. Ng3 {[%emt 1:02:10]} Bg6 6. Nf3 {[%emt 0:00:00]} Nd7 {[%emt 0:00:15]} 7. h4 {[%emt 0:00:00]} h6 {[%emt 0:00:10]} 8. Bd3 {[%emt 0:00:00]} Bxd3 {[%emt 0:00:17]} 9. Qxd3 {[%emt 0:00:00]} Ngf6 {[%emt 0:00:20]} 10. Bf4 {[%emt 0:00:00]} Qa5+ {[%emt 0:00:31]} 11. c3 {[%emt 0:00:00]} e6 {[%emt 0:00:57]} 12. Nd2 {[%emt 0:00:00]} Nd5 {[%emt 0:01:38]} 13. Ne2 {[%emt 0:00:00]} Nxf4 {[%emt 0:00:49]} 14. Nxf4 {[%emt 0:00:00]} Qc7 {[%emt 0:00:53]} 15. Ne2 {[%emt 0:00:00]} O-O-O {[%emt 0:01:37]} 16. O-O-O {[%emt 0:00:00]} Be7 {[%emt 0:01:29]} 17. Nf3 {[%emt 0:00:00]} Bf6 {[%emt 0:01:02]} 18. Kb1 {[%emt 0:00:00]} Kb8 {[%emt 0:00:38]} 19. Qc2 {[%emt 0:00:00]} Rhe8 {[%emt 0:01:40]} 20. g3 {[%emt 0:00:00]} e5 {[%emt 0:01:51]} 21. dxe5 {[%emt 0:00:00]} Nxe5 {[%emt 0:00:11]} 22. Nxe5 {[%emt 0:00:00]} Rxd1+ {[%emt 0:02:52]} 23. Rxd1 {[%emt 0:00:00]} Qxe5 {[%emt 0:00:09]} 24. Nd4 {[%emt 0:00:00]} Qe4 {[%emt 0:04:23]} 25. Qxe4 {[%emt 0:00:00]} Rxe4 {[%emt 0:00:07]} 26. Nf3 {[%emt 0:00:00]} Kc7 {[%emt 0:04:42]} 27. Re1 {[%emt 0:00:00]} Rxe1+ {[%emt 0:03:02]} 28. Nxe1 {[%emt 0:00:00]} Kd6 {[%emt 0:00:16]} 29. Kc2 {[%emt 0:00:00]} Bd8 {[%emt 0:00:21]} 30. Kd3 {[%emt 0:00:00]} Bb6 {[%emt 0:00:11]} 31. Ke2 {[%emt 0:00:00]} a5 {[%emt 0:00:46]} 32. Nd3 {[%emt 0:00:00]} Kd5 {[%emt 0:01:00]} 33. Nf4+ {[%emt 0:00:00]} Kc4 {[%emt 0:00:41]} 34. Nd3 {[%emt 0:00:00]} Bc7 {[%emt 0:01:19]} 35. Kd2 {[%emt 0:00:00]} a4 {[%emt 0:01:30]} 36. Kc2 {[%emt 0:00:00]} g5 {[%emt 0:01:01]} 37. hxg5 {[%emt 0:00:00]} hxg5 {[%emt 0:00:10]} 38. g4 {[%emt 0:00:00]} b5 {[%emt 0:01:54]} 39. Nb4 {[%emt 0:00:00]} Bb6 {[%emt 0:13:07]} 40. f3 {[%emt 0:00:00]} Kc5 {[%emt 0:01:54]} 41. Kd3 {[%emt 0:00:00]} Ba5 {[%emt 0:01:15]} 42. Nc2 {[%emt 0:00:00]} 1/2-1/2